bitfinex/quotes_SOLUSD_20240912
["timestamp","ask_amount","ask_price","bid_price","bid_amount"]
[1726099901303,0.258581,132.99,132.98,53.70798166]
[1726099901695,0.258581,132.99,132.98,53.83347166]
[1726099904609,0.258581,132.99,132.98,73.95896166]
[1726099911822,0.258581,132.99,132.98,75.46203154]
[1726099912119,0.258581,132.99,132.98,73.95896166]
[1726099912409,8.1e-05,132.99,132.98,73.95896166]
[1726099914095,8.1e-05,132.99,132.98,79.04863206]
[1726099914308,0.258581,133.03,133.02,26.3117]
[1726099914526,0.258581,133.03,133.02,50.339564]
[1726099916303,0.258581,133.03,133.02,71.84232321]
[1726099917294,0.258581,133.03,133.02,26.3117]
[1726099917496,0.258581,133.03,132.99,18.7976]
[1726099917701,0.258581,133.03,133.0,7.5187]
[1726099917922,0.258581,133.03,132.99,18.7976]
[1726099918100,7.775681,133.03,132.99,26.3168]
[1726099918496,7.5182,133.02,132.96,398.12304561]
[1726099918700,6.5749,133.02,132.95,18.8026]
[1726099918896,7.519,133.0,132.95,18.8026]
[1726099919123,7.5187,133.0,132.94,15.34819714]
[1726099919329,1.87977426,133.01,132.95,7.5211]
[1726099919631,6.5749,133.02,132.94,18.8044]
[1726099920005,6.5749,133.02,132.96,18.8015]
[1726099920531,6.5749,133.02,132.98,7.5194]
[1726099922420,6.5749,133.02,132.99,7.5193]
[1726099924932,6.5749,133.02,132.96,18.8015]
[1726099926534,14.0926,133.02,132.97,7.5204]
[1726099930236,14.0926,133.02,132.98,7.5198]
[1726099931638,14.0926,133.02,132.96,18.8015]
[1726099931639,9.39788713,133.01,132.96,18.8015]
[1726099933429,9.39788713,133.01,132.96,26.3224]
[1726099934338,7.5182,133.01,132.96,26.3224]
[1726099934634,6.5749,133.02,132.96,18.8015]
[1726099934635,14.0927,133.02,132.96,18.8015]
[1726099935338,6.5749,133.02,132.98,7.5194]
[1726099937733,6.5749,133.02,132.99,7.5188]
[1726099938114,6.5749,133.02,133.0,7.5187]
[1726099938316,0.258581,133.03,133.0,7.5187]
[1726099941240,7.775681,133.03,132.99,7.5193]
[1726099941915,0.258581,133.03,133.0,7.5185]
[1726099944841,0.258581,133.03,133.01,7.5182]
[1726099945136,0.258581,133.03,133.0,7.5186]
[1726099956022,0.258581,133.03,132.99,7.5191]
[1726099958346,7.775681,133.03,132.99,7.5191]
[1726099959739,7.775681,133.03,132.98,18.7992]
[1726099959943,7.775681,133.03,132.96,7.521]
[1726099959944,7.5188,133.0,132.96,7.521]
[1726099960123,7.5195,132.99,132.95,18.8029]
[1726099960329,7.5199,132.98,132.94,7.522]
[1726099960844,14.87569052,133.01,132.92,7.81969762]
[1726099961150,30.12549,133.0,132.89,0.258581]
[1726099961351,7.5233,132.92,132.89,0.258581]
[1726099962355,1.88098844,132.94,132.89,0.258581]
[1726099962356,7.5228,132.93,132.89,0.258581]
[1726099962644,12.8701,132.95,132.9,18.8099]
[1726099962645,20.3921,132.95,132.9,18.8099]
[1726099964352,0.12549,132.96,132.9,18.8099]
[1726099964555,7.521,132.97,132.91,7.5238]
[1726099965132,20.34809,132.98,132.9,18.8099]
[1726099965844,12.7026,132.98,132.94,7.5219]
[1726099966048,0.39542811,133.0,132.94,7.5219]
[1726099967053,7.91432811,133.0,132.95,7.5216]
[1726099967234,7.5194,132.99,132.94,7.522]
[1726099968738,7.52,132.98,132.93,26.3288]
[1726099972157,7.52,132.98,132.94,7.5221]
[1726099973458,7.52,132.98,132.93,26.3288]
[1726099980160,7.52,132.98,132.94,7.5221]
[1726099980344,0.52091811,133.0,132.92,15.7381]
[1726099980664,7.5206,132.97,132.92,23.2609]
[1726099981367,0.12549,132.99,132.94,7.5219]
[1726099981368,7.5199,132.98,132.94,7.5219]
[1726099982350,7.5195,132.99,132.94,7.5219]
[1726099984869,7.5195,132.99,132.95,7.5215]
[1726099985066,7.5195,132.99,132.94,7.522]
[1726099987257,7.5195,132.99,132.95,7.5215]
[1726099987783,7.5199,132.98,132.94,7.522]
[1726099988153,7.5194,132.99,132.94,7.522]
[1726099988560,7.5194,132.99,132.95,7.5215]
[1726099989064,0.79085622,133.0,132.96,7.5207]
[1726099989065,7.5189,133.0,132.96,7.5207]
[1726099991577,7.5195,132.99,132.95,7.5214]
[1726099991974,7.5188,133.0,132.96,7.5208]
[1726099992776,6.5749,133.01,132.96,18.8022]
[1726099993078,6.5749,133.01,132.97,7.5203]
[1726099993282,14.0931,133.01,132.97,7.5203]
[1726099994354,7.5199,132.98,132.94,7.5221]
[1726099994559,7.5199,132.98,132.93,42.582984]
[1726099994560,7.5206,132.97,132.93,26.3286]
[1726099994761,7.5206,132.97,132.93,18.8061]
[1726099994973,7.5217,132.95,132.91,7.5237]
[1726099995168,7.5211,132.96,132.91,7.5237]
[1726099995754,7.5216,132.95,132.91,7.5237]
[1726099995965,7.5226,132.94,132.9,18.8106]
[1726099996284,7.5226,132.94,132.9,26.3349]
[1726099997067,7.5215,132.96,132.91,7.5237]
[1726100001372,7.5216,132.95,132.91,7.5237]
[1726100002161,7.5221,132.94,132.9,18.8106]
[1726100002367,7.5217,132.95,132.9,26.3347]
[1726100011610,18.8016,132.97,132.89,0.258581]
[1726100011911,7.5231,132.93,132.89,0.258581]
[1726100012606,7.5233,132.92,132.89,0.258581]
[1726100014208,1.04183622,132.96,132.89,0.258581]
[1726100014407,7.524,132.91,132.89,0.258581]
[1726100015004,0.79085622,132.96,132.91,7.5238]
[1726100015206,6.3461,132.99,132.89,24.035465]
[1726100016405,0.12549,132.98,132.92,7.5233]
[1726100016601,0.12549,132.98,132.93,7.5226]
[1726100016910,7.5188,133.0,132.93,35.4183]
[1726100017090,9.03780818,133.02,132.95,18.8035]
[1726100017406,7.5177,133.02,132.97,7.5199]
[1726100018092,7.5177,133.02,132.98,7.5199]
[1726100018795,7.5177,133.02,132.97,13.5967]
[1726100021607,7.5177,133.02,132.98,9.02363094]
[1726100021812,0.384071,133.03,132.99,7.5192]
[1726100021813,7.901171,133.03,132.99,7.5192]
[1726100022112,0.258581,133.03,132.99,7.5192]
[1726100024425,7.775681,133.03,132.99,7.5192]
[1726100024819,7.775681,133.03,132.98,7.5198]
[1726100025115,7.5177,133.02,132.97,24.8765]
[1726100026316,7.5177,133.02,132.97,32.3968]
[1726100029917,0.258581,133.03,132.97,32.3968]
[1726100030126,7.5184,133.01,132.97,32.3968]
[1726100031613,7.5177,133.02,132.97,32.3968]
[1726100038800,0.258581,133.03,132.97,6.0764]
[1726100039101,0.25098,133.02,132.96,7.5205]
[1726100039301,2.13091445,133.02,132.96,7.5205]
[1726100040327,7.519,133.0,132.96,7.5205]
[1726100041324,7.5197,132.99,132.94,25.0656]
[1726100041534,27.50081445,133.02,132.94,6.2612]
[1726100041830,7.52,132.98,132.94,6.2612]
[1726100042007,1.88035692,132.97,132.94,6.2612]
[1726100042425,7.52,132.98,132.94,6.2612]
[1726100048336,0.12549,132.99,132.94,6.2612]
[1726100048528,0.12549,132.99,132.95,7.5215]
[1726100049433,7.64489,132.99,132.95,26.3248]
[1726100049832,7.64489,132.99,132.95,18.8033]
[1726100050738,7.64489,132.99,132.95,26.3247]
[1726100051111,7.5183,133.01,132.95,18.8033]
[1726100051629,7.5183,133.01,132.96,7.5209]
[1726100051940,7.5183,133.01,132.97,7.5204]
[1726100053935,1.87996418,133.0,132.94,6.2612]
[1726100054147,0.25098,132.99,132.93,16.6119]
[1726100054346,34.55083504,132.99,132.93,16.6119]
[1726100055331,7.5211,132.96,132.93,16.6119]
[1726100056651,0.25098,132.99,132.93,16.6119]
[1726100058246,7.5206,132.97,132.93,16.6119]
[1726100063052,0.39542811,133.02,132.93,16.6119]
[1726100063269,0.39542811,133.02,132.94,7.522]
[1726100063556,7.5189,133.0,132.95,7.5213]
[1726100063849,7.5183,133.01,132.96,6.1231]
[1726100064026,7.5183,133.01,132.96,13.6441]
[1726100066156,7.5188,133.0,132.96,6.1231]
[1726100066463,0.39542811,133.02,132.96,13.644]
[1726100066635,7.91342811,133.02,132.97,15.1236]
[1726100066836,7.5183,133.01,132.97,15.1236]
[1726100071059,7.5188,133.0,132.97,15.1236]
[1726100072941,7.5189,133.0,132.97,15.1236]
[1726100074642,7.5182,133.01,132.97,15.1236]
[1726100076758,0.258581,133.03,132.97,22.644]
[1726100076966,7.5183,133.01,132.97,22.644]
[1726100077265,7.5183,133.01,132.97,15.1236]
[1726100082870,7.5188,133.0,132.97,15.1236]
[1726100083853,0.258581,133.03,132.97,15.1236]
[1726100083854,7.5184,133.01,132.97,22.644]
[1726100084059,7.5184,133.01,132.97,15.1236]
[1726100084366,7.5188,133.0,132.97,15.1236]
[1726100087467,0.258581,133.03,132.97,22.6437]
[1726100088255,7.5182,133.01,132.97,22.6437]
[1726100091760,7.5177,133.02,132.97,22.6437]
[1726100092354,7.5183,133.01,132.97,22.6437]
[1726100092871,7.5182,133.01,132.97,15.1236]
[1726100093479,7.5188,133.0,132.97,15.1236]
[1726100095277,0.258581,133.03,132.97,22.6439]
[1726100095478,7.5181,133.02,132.97,22.6439]
[1726100097469,7.5184,133.01,132.97,22.6439]
[1726100097969,7.5184,133.01,132.97,15.1236]
[1726100098175,7.519,133.0,132.97,15.1236]
[1726100100374,7.5195,132.99,132.97,15.1236]
[1726100100875,7.5189,133.0,132.97,15.1236]
[1726100105079,0.258581,133.03,132.97,15.1236]
[1726100105262,0.258581,133.03,132.97,33.9241]
[1726100106267,7.5177,133.02,132.98,7.5196]
[1726100107387,7.776081,133.03,132.97,33.9241]
[1726100107969,7.776081,133.03,132.98,6.6384]
[1726100108490,0.258581,133.03,133.01,7.518]
[1726100108673,0.258581,133.03,133.02,7.99941165]
[1726100108983,0.258581,133.03,133.02,34.31111165]
[1726100109657,0.258581,133.03,133.02,32.808]
[1726100110156,0.258581,133.03,133.02,25.2904]
[1726100110353,0.258581,133.03,133.02,26.79363324]
[1726100112391,0.258581,133.03,133.02,32.808]
[1726100113685,0.258581,133.03,133.02,25.2904]
[1726100114565,0.258581,133.03,133.02,6.4963]
[1726100115383,7.775781,133.03,133.0,15.5862]
[1726100115957,0.258581,133.03,133.0,15.5862]
[1726100116884,7.775781,133.03,133.0,15.5862]
[1726100117886,0.258581,133.03,133.0,23.1049]
[1726100118288,0.258581,133.03,133.01,7.5182]
[1726100119581,0.258581,133.03,133.0,23.1049]
[1726100119887,0.258581,133.03,133.0,15.5862]
[1726100125105,0.258581,133.03,133.0,23.1049]
[1726100128903,7.775781,133.03,133.0,15.5862]
[1726100135615,0.258581,133.03,132.97,16.1339]
[1726100136001,2.13834455,133.03,132.97,16.1339]
[1726100136508,7.5188,133.0,132.97,16.1339]
[1726100138513,7.5183,133.01,132.97,16.1339]
[1726100139097,7.5183,133.01,132.97,23.6542]
[1726100139307,0.258581,133.03,132.98,7.5196]
[1726100139510,0.258581,133.03,132.95,6.5082]
[1726100139698,7.5194,132.99,132.95,6.5082]
[1726100144522,7.5194,132.99,132.95,14.0297]
[1726100144931,7.5194,132.99,132.95,6.5082]
[1726100145252,7.5188,133.0,132.95,6.5082]
[1726100145534,0.258581,133.03,132.97,16.0494]
[1726100145712,0.258581,133.03,133.0,7.5187]
[1726100145914,0.258581,133.03,132.98,18.7988]
[1726100146118,7.775681,133.03,132.99,7.5192]
[1726100148333,0.258581,133.03,132.99,7.5192]
[1726100149416,7.5177,133.02,132.97,23.5693]
[1726100150018,0.258581,133.03,132.97,23.5693]
[1726100150019,7.775681,133.03,132.98,7.5198]
[1726100150538,0.258581,133.03,132.99,7.5193]
[1726100150715,0.258581,133.03,133.0,7.5186]
[1726100150908,0.258581,133.03,132.99,7.5193]
[1726100153747,0.258581,133.03,133.0,7.5186]
[1726100155731,0.258581,133.03,133.01,7.5181]
[1726100159451,0.258581,133.03,133.0,7.5186]
[1726100160545,0.258581,133.03,132.99,32.3194]
[1726100162257,0.258581,133.03,132.99,18.7976]
[1726100163161,0.258581,133.03,132.97,23.5698]
[1726100163162,7.5187,133.01,132.97,23.5698]
[1726100163559,0.258581,133.03,132.98,18.7992]
[1726100163744,7.775681,133.03,132.98,26.3189]
[1726100163939,7.5177,133.02,132.98,26.3189]
[1726100164164,2.13813671,133.03,132.97,16.0494]
[1726100164342,7.5183,133.01,132.96,7.5209]
[1726100164867,7.5189,133.0,132.95,26.325]
[1726100165458,7.5194,132.99,132.95,18.8036]
[1726100165867,7.5194,132.99,132.95,26.325]
[1726100167736,7.5194,132.99,132.95,18.8036]
[1726100168332,7.5199,132.98,132.95,18.8036]
[1726100168650,7.5199,132.98,132.93,22.164]
[1726100169744,7.5205,132.97,132.93,29.6865]
[1726100169953,7.5205,132.97,132.92,26.3301]
[1726100170169,7.5203,132.98,132.93,9.0260133]
[1726100170766,7.5203,132.98,132.94,7.5219]
[1726100171358,7.5203,132.98,132.93,7.5226]
[1726100172470,7.5205,132.97,132.93,7.5226]
[1726100174959,7.5205,132.97,132.92,26.3305]
[1726100178766,7.5216,132.95,132.92,18.8073]
[1726100178956,7.521,132.96,132.92,18.8073]
[1726100179178,7.5206,132.97,132.92,26.3302]
[1726100185793,7.521,132.96,132.92,26.3302]
[1726100195397,1.8803597,132.95,132.9,16.6301]
[1726100195701,1.8803597,132.95,132.88,7.8398851]
[1726100195702,7.524,132.91,132.88,7.8398851]
[1726100195888,7.524,132.91,132.86,7.5265]
[1726100196786,7.5251,132.89,132.85,26.602981]
[1726100197021,7.5256,132.88,132.85,0.258581]
[1726100197590,18.8089,132.92,132.82,18.8216]
[1726100197591,7.5267,132.86,132.82,18.8216]
[1726100198416,0.39542811,132.9,132.82,26.3504]
[1726100198417,7.5262,132.87,132.82,26.3504]
[1726100199292,7.5275,132.85,132.81,15.913081]
[1726100200699,7.5268,132.86,132.81,23.442581]
[1726100201625,7.5272,132.85,132.81,23.442581]
[1726100201802,19.20742811,132.9,132.81,23.442581]
[1726100201803,7.5278,132.84,132.81,0.258581]
[1726100204128,7.5267,132.86,132.81,7.788081]
[1726100204803,6.5749,132.88,132.81,0.258581]
[1726100204804,7.5282,132.84,132.81,0.258581]
[1726100207904,6.5749,132.88,132.81,19.081681]
[1726100208206,0.25098,132.87,132.81,26.611081]
[1726100208604,0.25098,132.87,132.81,19.081681]
[1726100208804,7.5274,132.85,132.81,19.081681]
[1726100209725,7.5278,132.84,132.81,0.258581]
[1726100211704,9.41092057,132.83,132.81,0.258581]
[1726100211924,7.5289,132.82,132.81,0.258581]
[1726100218136,7.5289,132.82,132.78,41.8349]
[1726100218137,7.5289,132.82,132.78,34.3038]
[1726100218548,7.5289,132.82,132.78,41.8349]
[1726100218837,7.5285,132.83,132.78,41.8349]
[1726100225544,7.5291,132.82,132.78,41.8349]
[1726100225744,0.39542811,132.85,132.78,41.8349]
[1726100225745,7.5299,132.81,132.78,15.4764]
[1726100226449,7.5299,132.81,132.77,14.392881]
[1726100226949,7.5303,132.8,132.77,0.258581]
[1726100232724,19.21432811,132.85,132.78,7.531]
[1726100232947,7.5294,132.82,132.77,26.619181]
[1726100235465,7.5294,132.82,132.78,7.5312]
[1726100237250,7.5294,132.82,132.77,0.258581]
[1726100237251,7.5312,132.78,132.77,0.258581]
[1726100237459,7.5307,132.79,132.77,0.258581]
[1726100237648,12.8323,132.84,132.77,0.258581]
[1726100237649,0.39542811,132.81,132.77,0.258581]
[1726100237855,12.8323,132.84,132.78,7.5312]
[1726100238279,6.5749,132.84,132.78,7.5312]
[1726100238574,0.12549,132.85,132.78,7.5312]
[1726100238872,0.25098,132.85,132.78,7.5312]
[1726100239076,0.52091811,132.85,132.78,7.5312]
[1726100239253,7.5283,132.84,132.78,7.5311]
[1726100239458,18.8223,132.83,132.77,0.258581]
[1726100239776,7.5295,132.81,132.77,0.258581]
[1726100239949,7.92442811,132.82,132.77,0.258581]
[1726100241366,7.5285,132.83,132.77,7.789881]
[1726100241672,19.21232811,132.86,132.77,7.789881]
[1726100241673,7.5279,132.84,132.78,7.531]
[1726100241969,7.5273,132.85,132.8,7.5299]
[1726100242155,17.81151051,132.89,132.81,1.50567123]
[1726100242353,25.78272811,132.9,132.8,23.7137]
[1726100242552,7.5274,132.85,132.8,23.7137]
[1726100244164,7.526,132.88,132.82,7.5284]
[1726100244380,7.5263,132.87,132.82,7.5284]
[1726100245047,7.5263,132.87,132.81,7.5295]
[1726100245250,7.5267,132.86,132.81,7.5295]
[1726100246261,7.5267,132.86,132.8,42.539]
[1726100248972,7.5274,132.85,132.8,42.539]
[1726100251255,7.5266,132.87,132.8,35.009]
[1726100251760,7.5266,132.87,132.82,7.5285]
[1726100252278,7.5257,132.88,132.83,7.5283]
[1726100252581,0.39542811,132.88,132.82,13.6704]
[1726100252749,7.5268,132.86,132.82,6.1415]
[1726100256183,7.5277,132.85,132.82,6.1415]
[1726100256389,7.5279,132.84,132.82,6.1415]
[1726100256957,7.5271,132.86,132.82,6.1415]
[1726100257287,7.5257,132.88,132.84,15.3334]
[1726100258258,7.5257,132.88,132.84,22.8611]
[1726100258775,7.5257,132.88,132.84,15.3334]
[1726100259276,7.5257,132.88,132.84,22.8611]
[1726100262981,7.5257,132.88,132.84,15.3334]
[1726100263175,7.5257,132.88,132.84,22.8611]
[1726100265860,7.5257,132.88,132.84,15.3334]
[1726100267080,7.5257,132.88,132.84,22.8611]
[1726100267274,7.525,132.9,132.85,7.5271]
[1726100267478,7.782581,132.91,132.86,7.5265]
[1726100267673,7.782581,132.91,132.87,13.6679]
[1726100275686,7.782581,132.91,132.88,15.6545]
[1726100283377,7.5259,132.88,132.85,15.2582]
[1726100283576,7.5261,132.87,132.85,15.2582]
[1726100283795,18.8119,132.9,132.83,6.0892]
[1726100283998,7.5277,132.85,132.83,6.0892]
[1726100284176,7.5277,132.85,132.82,15.2582]
[1726100284380,2.27715193,132.89,132.82,15.2582]
[1726100284683,7.5273,132.85,132.82,15.2582]
[1726100284887,7.528,132.84,132.82,15.2582]
[1726100285097,7.5284,132.83,132.82,15.2582]
[1726100285304,18.8176,132.86,132.78,15.2582]
[1726100285605,7.529,132.82,132.78,15.2582]
[1726100291688,7.5285,132.83,132.78,22.7892]
[1726100291889,20.52024331,132.89,132.79,42.602884]
[1726100292289,7.5279,132.84,132.8,7.53]
[1726100293212,7.5274,132.85,132.8,7.53]
[1726100293396,7.5267,132.86,132.82,7.5289]
[1726100293706,18.06656621,132.91,132.83,29.8704]
[1726100293707,7.5256,132.88,132.83,29.8704]
[1726100293905,7.525,132.89,132.83,41.1622]
[1726100294206,7.525,132.89,132.84,7.5277]
[1726100294588,7.5258,132.88,132.83,48.6904]
[1726100294988,7.5258,132.88,132.84,7.5278]
[1726100295287,7.5251,132.89,132.84,7.5278]
[1726100297112,7.5256,132.88,132.84,7.5278]
[1726100297331,7.5256,132.88,132.83,48.6905]
[1726100303223,23.776884,132.95,132.83,48.949081]
[1726100303393,23.776884,132.93,132.83,48.949081]
[1726100303589,0.25098,132.92,132.83,48.949081]
[1726100304298,7.5256,132.88,132.83,48.949081]
[1726100308218,7.5256,132.88,132.84,7.5277]
[1726100308922,7.5256,132.88,132.83,48.949081]
[1726100309520,7.5262,132.87,132.83,48.949081]
[1726100311424,7.5245,132.9,132.85,7.5268]
[1726100311591,7.5245,132.9,132.87,6.4301]
[1726100311924,7.524,132.91,132.87,6.4301]
[1726100312793,7.5244,132.9,132.87,6.4301]
[1726100314393,7.5251,132.89,132.87,6.4301]
[1726100319309,0.39517976,132.94,132.88,15.544]
[1726100319514,18.8027,132.96,132.88,15.544]
[1726100319719,7.5237,132.92,132.88,15.544]
[1726100319918,7.5237,132.92,132.88,23.0695]
[1726100320724,7.5226,132.94,132.9,7.5243]
[1726100320925,7.5226,132.94,132.91,6.6459]
[1726100321424,7.5218,132.95,132.91,14.1697]
[1726100322936,7.5218,132.95,132.91,6.6459]
[1726100324428,7.5222,132.94,132.91,6.6459]
[1726100324811,18.8016,132.97,132.91,6.6459]
[1726100325149,7.5228,132.93,132.91,6.6459]
[1726100325641,7.5223,132.94,132.92,15.8247]
[1726100334629,7.5223,132.94,132.91,6.6459]
[1726100334630,7.5227,132.93,132.91,6.6459]
[1726100336541,7.5233,132.92,132.91,6.6459]
[1726100337333,7.5233,132.92,132.89,16.5209]
[1726100338346,7.5242,132.91,132.89,16.5209]
[1726100338713,7.5244,132.9,132.89,16.5209]
[1726100338916,7.5244,132.9,132.88,6.4588]
[1726100339417,18.8048,132.95,132.88,6.4588]
[1726100339630,7.5239,132.91,132.88,6.4588]
[1726100342544,7.5245,132.9,132.88,6.4588]
[1726100342866,7.5245,132.9,132.86,34.7075]
[1726100342867,7.525,132.89,132.86,15.8919]
[1726100343856,37.73329,132.96,132.87,7.5257]
[1726100343857,7.5239,132.91,132.87,7.5257]
[1726100344355,7.5234,132.92,132.87,7.5257]
[1726100351365,7.5239,132.91,132.87,7.5257]
[1726100352166,7.5234,132.92,132.88,14.0658]
[1726100352666,7.5228,132.93,132.88,14.0658]
[1726100353546,7.5228,132.93,132.89,7.5248]
[1726100353747,56.657081,132.99,132.9,23.0702]
[1726100353970,7.5211,132.96,132.92,14.1588]
[1726100354166,7.5205,132.97,132.93,7.5226]
[1726100354983,7.5205,132.97,132.92,6.6356]
[1726100356180,24.035465,132.99,132.92,6.6356]
[1726100356373,7.5216,132.95,132.92,6.6356]
[1726100359284,7.5222,132.94,132.92,6.6356]
[1726100363773,7.5215,132.96,132.92,6.6356]
[1726100364191,7.5215,132.96,132.92,14.1588]
[1726100364889,7.5206,132.97,132.92,14.1588]
[1726100365100,0.258581,132.99,132.92,14.1588]
[1726100366293,7.5211,132.96,132.92,14.1588]
[1726100368166,7.5205,132.97,132.93,7.5227]
[1726100368367,7.5205,132.97,132.93,23.4888]
[1726100369299,7.5199,132.98,132.93,23.4888]
[1726100369589,0.258581,132.99,132.93,23.4888]
[1726100369590,7.5205,132.97,132.93,23.4888]
[1726100369976,7.5212,132.96,132.93,15.9661]
[1726100370582,7.5205,132.97,132.93,15.9661]
[1726100372087,7.521,132.96,132.93,15.9661]
[1726100374487,7.5217,132.95,132.93,15.9661]
[1726100383573,7.5221,132.94,132.93,15.9661]
[1726100383997,7.5218,132.95,132.93,15.9661]
[1726100385103,7.5227,132.93,132.92,6.6356]
[1726100387498,18.8016,132.97,132.89,42.0808]
[1726100387499,18.8048,132.95,132.89,15.7443]
[1726100387699,7.5244,132.9,132.89,15.7443]
[1726100388079,7.525,132.89,132.88,6.2677]
[1726100388304,7.525,132.89,132.85,29.119481]
[1726100388305,7.5251,132.89,132.85,29.119481]
[1726100388499,18.8077,132.93,132.85,29.119481]
[1726100388500,7.5245,132.9,132.85,29.119481]
[1726100389192,7.5245,132.9,132.86,7.5266]
[1726100389377,7.524,132.91,132.86,7.5266]
[1726100389697,7.5245,132.9,132.86,7.5266]
[1726100390005,7.525,132.89,132.85,40.409781]
[1726100390589,7.5255,132.88,132.85,21.592281]
[1726100396486,18.8077,132.93,132.85,29.118981]
[1726100396698,7.5244,132.9,132.85,29.118981]
[1726100397089,0.25098,132.92,132.85,29.118981]
[1726100397090,7.5252,132.89,132.85,29.118981]
[1726100397811,7.5256,132.88,132.85,21.592281]
[1726100399094,7.5252,132.89,132.85,21.592281]
[1726100399309,7.5256,132.88,132.85,21.592281]
[1726100399508,0.25098,132.92,132.85,29.119081]
[1726100399714,0.12549,132.91,132.85,29.119081]
[1726100399917,0.25098,132.93,132.85,29.119081]
[1726100400412,7.5245,132.9,132.85,29.119081]
[1726100401098,0.25098,132.93,132.85,21.592281]
[1726100401300,1.31113511,132.96,132.89,7.525]
[1726100401503,7.5216,132.95,132.91,6.0713]
[1726100401695,7.5227,132.93,132.91,6.0713]
[1726100404797,7.5233,132.92,132.88,22.5978]
[1726100405511,7.5239,132.91,132.88,22.5978]
[1726100409516,7.5244,132.9,132.88,22.5978]
[1726100409826,0.12549,132.91,132.88,16.2808]
[1726100410304,7.525,132.89,132.88,16.2808]
[1726100410934,7.5244,132.9,132.88,16.2808]
[1726100411996,7.525,132.89,132.88,16.2808]
[1726100419709,7.5256,132.88,132.85,6.289181]
[1726100420931,7.5252,132.89,132.85,6.289181]
[1726100430638,7.5271,132.86,132.84,16.0687]
[1726100430840,7.528,132.84,132.82,6.1224]
[1726100431452,7.5274,132.85,132.82,6.1224]
[1726100431968,23.776884,132.88,132.82,6.1224]
[1726100432144,0.25098,132.87,132.82,6.1224]
[1726100432338,7.5284,132.83,132.81,16.323781]
[1726100433243,7.5289,132.82,132.81,0.258581]
[1726100433444,7.5289,132.82,132.78,29.8619]
[1726100434369,7.5289,132.82,132.78,22.3308]
[1726100439474,7.5285,132.83,132.78,29.8616]
[1726100439678,18.8168,132.86,132.78,29.8616]
[1726100439679,0.12549,132.84,132.78,29.8616]
[1726100439882,27.65319,132.85,132.79,7.5306]
[1726100440173,7.5277,132.85,132.78,41.1579]
[1726100440349,7.5268,132.86,132.81,7.5294]
[1726100440847,7.5262,132.87,132.82,7.5289]
[1726100441047,7.5262,132.87,132.83,21.4528]
[1726100442169,0.258581,132.91,132.83,21.4528]
[1726100442349,7.5254,132.89,132.84,7.5273]
[1726100444342,0.258581,132.91,132.85,7.5272]
[1726100444954,7.782881,132.91,132.85,7.5272]
[1726100445457,7.5246,132.9,132.85,7.5272]
[1726100447077,0.258581,132.91,132.85,23.776884]
[1726100447958,0.258581,132.91,132.87,7.5261]
[1726100449186,7.782481,132.91,132.86,26.3423]
[1726100449991,7.782481,132.91,132.87,7.526]
[1726100450283,7.782481,132.91,132.88,21.3606]
[1726100450665,0.258581,132.91,132.88,21.3606]
[1726100450972,0.258581,132.91,132.89,7.5249]
[1726100451482,0.258581,132.91,132.9,7.5244]
[1726100452186,0.258581,132.91,132.9,8.51772537]
[1726100452374,0.258581,132.91,132.9,9.02880439]
[1726100453786,0.258581,132.91,132.9,7.5244]
[1726100454165,0.258581,132.91,132.9,9.02876708]
[1726100454970,0.258581,132.91,132.9,31.301284]